fUSD/lending_fUSD_20260319
["ID","MTS","AMOUNT","RATE_DAILY","PERIOD"]
[408577172,1773901844452,-500.0,0.00013695,2]
[408577173,1773901844462,-909.0,0.00013695,2]
[408577174,1773901844471,-500.0,0.00013695,2]
[408577175,1773901844480,-451.64334977,0.00013695,2]
[408577176,1773901844490,-500.0,0.00013695,2]
[408577177,1773901844501,-500.0,0.00013695,2]
[408577178,1773901844510,-909.0,0.00013695,2]
[408577179,1773901844522,-150.0,0.00013695,2]
[408577180,1773901844541,-500.0,0.00013695,2]
[408577181,1773901844551,-909.0,0.00013695,2]
[408577182,1773901844560,-500.0,0.00013695,2]
[408577183,1773901844570,-909.0,0.00013695,2]
[408577184,1773901844581,-500.0,0.00013695,2]
[408577185,1773901844591,-500.0,0.00013695,2]
[408577186,1773901844602,-909.0,0.00013695,2]
[408577187,1773901844611,-500.0,0.00013695,2]
[408577188,1773901844620,-500.0,0.00013695,2]
[408577189,1773901844630,-909.0,0.00013695,2]
[408577190,1773901844639,-484.38346012,0.00013695,2]
[408577191,1773901844648,-238.49988002,0.00013695,2]
[408577192,1773901844657,-909.0,0.00013695,2]
[408577193,1773901844666,-150.0,0.00013695,2]
[408577194,1773901844675,-909.0,0.00013695,2]
[408577195,1773901844684,-909.0,0.00013695,2]
[408577196,1773901844694,-909.0,0.00013695,2]
[408577197,1773901844705,-909.0,0.00013695,2]
[408577198,1773901844716,-909.0,0.00013695,2]
[408577199,1773901844726,-909.0,0.00013695,2]
[408577200,1773901844736,-909.0,0.00013695,2]
[408577201,1773901844746,-909.0,0.00013695,2]
[408577202,1773901844756,-909.0,0.00013695,2]
[408577203,1773901844765,-909.0,0.00013695,2]
[408577204,1773901844774,-909.0,0.00013695,2]
[408577205,1773901844782,-910.07406063,0.00013695,2]
[408577206,1773901844791,-150.0,0.00013695,2]
[408577207,1773901844800,-500.0,0.00013695,2]
[408577208,1773901844809,-150.0,0.00013695,2]
[408577209,1773901844818,-500.0,0.00013695,2]
[408577210,1773901844826,-150.0,0.00013695,2]
[408577211,1773901844835,-280.14759695,0.00013695,2]
[408577212,1773901844844,-500.0,0.00013695,2]
[408577213,1773901844853,-150.0,0.00013695,2]
[408577214,1773901844870,-399.25540835,0.00013695,2]
[408577215,1773901844879,-150.0,0.00013695,2]
[408577216,1773901844889,-150.0,0.00013695,2]
[408577217,1773901844897,-156.12652739,0.00013695,2]
[408577218,1773901844906,-150.0,0.00013695,2]
[408577219,1773901844914,-150.0,0.00013695,2]
[408577220,1773901844923,-150.0,0.00013695,2]
[408577221,1773901844932,-178.47147906,0.00013695,2]
[408577222,1773901844941,-154.75024109,0.00013695,2]
[408577223,1773901844950,-150.0,0.00013695,2]
[408577224,1773901844958,-500.0,0.00013695,2]
[408577225,1773901844967,-500.0,0.00013695,2]
[408577226,1773901844976,-500.0,0.00013695,2]
[408577227,1773901844985,-500.0,0.00013695,2]
[408577228,1773901844997,-500.0,0.00013695,2]
[408577229,1773901845006,-150.0,0.00013695,2]
[408577230,1773901845015,-500.0,0.00013695,2]
[408577231,1773901845024,-500.0,0.00013695,2]
[408577232,1773901845033,-500.0,0.00013695,2]
[408577233,1773901845041,-500.0,0.00013695,2]
[408577234,1773901845050,-150.0,0.00013695,2]
[408577235,1773901845060,-500.0,0.00013695,2]
[408577236,1773901845069,-500.0,0.00013695,2]
[408577237,1773901845078,-500.0,0.00013695,2]
[408577238,1773901845087,-150.0,0.00013695,2]
[408577239,1773901845097,-556.13980161,0.00013695,2]
[408577240,1773901845105,-150.0,0.00013695,2]
[408577241,1773901845115,-500.0,0.00013695,2]
[408577242,1773901845124,-542.50378378,0.00013695,2]
[408577243,1773901845133,-500.0,0.00013695,2]
[408577244,1773901845142,-286.48877466,0.00013695,2]
[408577245,1773901845151,-608.69659724,0.00013695,2]
[408577246,1773901845161,-202.13850988,0.00013695,2]
[408577247,1773901845170,-500.0,0.00013698,2]
[408577248,1773901845179,-500.0,0.00013698,2]
[408577249,1773901845189,-500.0,0.00013698,2]
[408577250,1773901845199,-500.0,0.00013698,2]
[408577251,1773901845208,-500.0,0.00013698,2]
[408577252,1773901845217,-500.0,0.00013698,2]
[408577253,1773901845226,-500.0,0.00013698,2]
[408577254,1773901845235,-500.0,0.00013698,2]
[408577255,1773901845246,-500.0,0.00013698,2]
[408577256,1773901845255,-500.0,0.00013698,2]
[408577257,1773901845263,-500.0,0.00013698,2]
[408577258,1773901845272,-530.20751779,0.00013698,2]
[408577259,1773901845282,-500.0,0.00013698,2]
[408577260,1773901845292,-500.0,0.00013698,2]
[408577261,1773901845301,-500.0,0.00013698,2]
[408577262,1773901845310,-500.0,0.00013698,2]
[408577263,1773901845322,-500.0,0.00013698,2]
[408577264,1773901845331,-500.0,0.00013698,2]
[408577265,1773901845340,-338.47316987,0.00013698,2]
[408577266,1773901845350,-500.0,0.00013698,2]
[408577267,1773901845359,-546.27391006,0.00013698,2]
[408577268,1773901845368,-500.0,0.00013698,2]
[408577269,1773901845378,-500.0,0.00013698,2]
[408577270,1773901845387,-500.0,0.00013698,2]
[408577271,1773901845396,-404.05309335,0.00013698,2]
[408577272,1773901845406,-500.0,0.00013698,2]
[408577273,1773901845416,-500.0,0.00013698,2]
[408577274,1773901845425,-519.55408255,0.00013698,2]
[408577275,1773901845435,-500.0,0.00013698,2]
[408577276,1773901845444,-500.0,0.00013698,2]
[408577277,1773901845453,-500.0,0.00013698,2]
[408577278,1773901845462,-500.0,0.00013698,2]
[408577279,1773901845471,-502.28440551,0.00013698,2]
[408577280,1773901845481,-500.0,0.00013698,2]
[408577281,1773901845493,-500.0,0.00013698,2]
[408577282,1773901845503,-500.0,0.00013698,2]
[408577283,1773901845512,-500.0,0.00013698,2]
[408577284,1773901845521,-500.0,0.00013698,2]
[408577285,1773901845531,-500.0,0.00013698,2]
[408577286,1773901845542,-500.0,0.00013698,2]
[408577287,1773901845552,-500.0,0.00013698,2]
[408577288,1773901845562,-500.0,0.00013698,2]
[408577289,1773901845571,-500.0,0.00013698,2]
[408577290,1773901845580,-500.0,0.00013698,2]
[408577291,1773901845590,-500.0,0.00013698,2]
[408577292,1773901845601,-500.0,0.00013698,2]
[408577293,1773901845611,-500.0,0.00013698,2]
[408577294,1773901845620,-515.7254833,0.00013698,2]
[408577295,1773901845630,-500.0,0.00013698,2]
[408577296,1773901845639,-500.0,0.00013698,2]
[408577297,1773901845648,-500.0,0.00013698,2]
[408577298,1773901845657,-500.0,0.00013698,2]
[408577299,1773901845666,-500.79338971,0.00013698,2]
[408577300,1773901845675,-500.0,0.00013698,2]
[408577301,1773901845684,-500.0,0.00013698,2]
[408577302,1773901845693,-500.0,0.00013698,2]
[408577303,1773901845702,-500.0,0.00013698,2]
[408577304,1773901845711,-500.0,0.00013698,2]
[408577305,1773901845720,-500.0,0.00013698,2]
[408577306,1773901845729,-500.0,0.00013698,2]
[408577307,1773901845738,-500.0,0.00013698,2]
[408577308,1773901845748,-500.0,0.00013698,2]
[408577309,1773901845758,-548.16396228,0.00013698,2]
[408577310,1773901845768,-500.0,0.00013698,2]
[408577311,1773901845777,-500.0,0.00013698,2]
[408577312,1773901845786,-500.0,0.00013698,2]
[408577313,1773901845796,-507.21704968,0.00013698,2]
[408577314,1773901845807,-500.0,0.00013698,2]
[408577315,1773901845820,-500.0,0.00013698,2]
[408577316,1773901845829,-500.0,0.00013698,2]
[408577317,1773901845841,-505.19692822,0.00013698,2]
[408577318,1773901845850,-500.0,0.00013698,2]
[408577319,1773901845859,-500.0,0.00013698,2]
[408577320,1773901845868,-500.0,0.00013698,2]
[408577321,1773901845877,-308.11684657,0.00013698,2]
[408577323,1773901845887,-500.0,0.00013698,2]
[408577324,1773901845896,-500.0,0.00013698,2]
[408577325,1773901845905,-500.0,0.00013698,2]
[408577326,1773901845914,-500.0,0.00013698,2]
[408577327,1773901845924,-500.0,0.00013698,2]
[408577328,1773901845934,-500.0,0.00013698,2]
[408577329,1773901845943,-500.0,0.00013698,2]
[408577330,1773901845953,-507.46942592,0.00013698,2]
[408577331,1773901845962,-500.0,0.00013698,2]
[408577332,1773901845971,-500.0,0.00013698,2]
[408577333,1773901845981,-500.0,0.00013698,2]
[408577334,1773901845990,-500.0,0.00013698,2]
[408577335,1773901845998,-500.0,0.00013698,2]
[408577336,1773901846007,-500.0,0.00013698,2]
[408577337,1773901846017,-500.0,0.00013698,2]
[408577338,1773901846026,-500.0,0.00013698,2]
[408577339,1773901846035,-500.0,0.00013698,2]
[408577340,1773901846044,-500.0,0.00013698,2]
[408577341,1773901846053,-515.1515975,0.00013698,2]
[408577342,1773901846062,-500.0,0.00013698,2]
[408577343,1773901846071,-500.0,0.00013698,2]
[408577344,1773901846081,-500.0,0.00013698,2]
[408577345,1773901846090,-501.79858998,0.00013698,2]
[408577346,1773901846099,-239.13327104,0.00013698,2]
[408577347,1773901846108,-500.0,0.00013698,2]
[408577348,1773901846117,-500.0,0.00013698,2]
[408577349,1773901846126,-500.0,0.00013698,2]
[408577350,1773901846135,-500.0,0.00013698,2]
[408577351,1773901846145,-500.0,0.00013698,2]
[408577352,1773901846154,-292.25237575,0.00013698,2]
[408577353,1773901846163,-500.0,0.00013698,2]
[408577354,1773901846173,-500.0,0.00013698,2]
[408577355,1773901846182,-500.0,0.00013698,2]
[408577356,1773901846192,-497.57987952,0.00013698,2]
[408577357,1773901846201,-500.0,0.00013698,2]
[408577358,1773901846210,-500.0,0.00013698,2]
[408577359,1773901846219,-500.0,0.00013698,2]
[408577360,1773901846228,-500.0,0.00013698,2]
[408577361,1773901846237,-363.73620363,0.00013698,2]
[408577362,1773901846250,-500.0,0.00013698,2]
[408577363,1773901846259,-500.0,0.00013698,2]
[408577364,1773901846268,-500.0,0.00013698,2]
[408577365,1773901846278,-500.0,0.00013698,2]
[408577366,1773901846287,-500.0,0.00013698,2]
[408577367,1773901846296,-500.0,0.00013698,2]
[408577368,1773901846306,-500.0,0.00013698,2]
[408577369,1773901846315,-500.0,0.00013698,2]
[408577370,1773901846326,-500.0,0.00013698,2]
[408577371,1773901846335,-372.32743574,0.00013698,2]
[408577372,1773901846344,-500.0,0.00013698,2]
[408577373,1773901846353,-500.0,0.00013698,2]
[408577374,1773901846362,-500.0,0.00013698,2]
[408577375,1773901846372,-500.0,0.00013698,2]
[408577376,1773901846381,-605.91414037,0.00013698,2]
[408577377,1773901846390,-500.0,0.00013698,2]
[408577378,1773901846400,-500.0,0.00013698,2]
[408577379,1773901846409,-504.39062474,0.00013698,2]
[408577380,1773901846419,-500.0,0.00013698,2]
[408577381,1773901846428,-500.0,0.00013698,2]
[408577382,1773901846437,-500.0,0.00013698,2]
[408577383,1773901846447,-500.0,0.00013698,2]
[408577384,1773901846455,-500.0,0.00013698,2]
[408577385,1773901846465,-500.0,0.00013698,2]
[408577387,1773901846474,-510.13276666,0.00013698,2]
[408577388,1773901846483,-500.0,0.00013698,2]
[408577389,1773901846492,-500.0,0.00013698,2]
[408577390,1773901846502,-500.0,0.00013698,2]
[408577391,1773901846511,-500.0,0.00013698,2]
[408577392,1773901846520,-500.0,0.00013698,2]
[408577393,1773901846529,-500.0,0.00013698,2]
[408577394,1773901846539,-500.0,0.00013698,2]
[408577395,1773901846548,-500.0,0.00013698,2]
[408577396,1773901846558,-500.0,0.00013698,2]
[408577397,1773901846567,-500.0,0.00013698,2]
[408577398,1773901846576,-500.0,0.00013698,2]
[408577399,1773901846585,-500.0,0.00013698,2]
[408577400,1773901846595,-500.0,0.00013698,2]
[408577401,1773901846604,-500.0,0.00013698,2]
[408577402,1773901846613,-500.0,0.00013698,2]
[408577403,1773901846622,-500.0,0.00013698,2]
[408577404,1773901846631,-364.86478079,0.00013698,2]
[408577405,1773901846640,-500.0,0.00013698,2]
[408577406,1773901846649,-500.0,0.00013698,2]
[408577407,1773901846658,-500.0,0.00013698,2]
[408577408,1773901846667,-500.0,0.00013698,2]
[408577409,1773901846677,-500.0,0.00013698,2]
[408577410,1773901846686,-500.0,0.00013698,2]
[408577411,1773901846696,-500.0,0.00013698,2]
[408577412,1773901846706,-227.04614939,0.00013699,2]
[408577413,1773901846715,-150.0,0.00013699,2]
[408577414,1773901846724,-715.67,0.00013699,2]
[408577415,1773901846733,-157.48,0.00013699,2]
[408577416,1773901846743,-787.43,0.00013699,2]
[408577417,1773901846752,-275.62181571,0.00013699,2]
[408577418,1773901846761,-726.75,0.000137,2]
[408577419,1773901846771,-1005.04,0.000137,2]
[408577420,1773901846780,-4550.65,0.000137,2]
[408577421,1773901846789,-9535.42,0.000137,2]
[408577422,1773901846798,-500.0,0.000137,2]
[408577423,1773901846808,-8552.64,0.000137,2]
[408577424,1773901846817,-3665.66,0.000137,2]
[408577425,1773901846826,-533298.08,0.000137,2]
[408577426,1773901846835,-151.0,0.00013714,2]
[408577427,1773901846844,-11878.85235123,0.00013717,2]
[408577428,1773901846853,-154.42032794,0.00013732,2]
[408577429,1773901846863,-600.0,0.00013744,2]
[408577430,1773901846872,-1194.75,0.00013748,2]
[408577431,1773901846881,-979.16666667,0.00013749,2]
[408577432,1773901846890,-160.0,0.00013749,2]
[408577433,1773901846899,-12318.36988823,0.00013772,2]
[408577434,1773901846908,-28035.86921723,0.00013817,2]
[408577435,1773901846917,-693.89191589,0.00013825,2]
[408577436,1773901846927,-12774.14957409,0.00013827,2]
[408577437,1773901846936,-9213.90882281,0.00013882,2]
[408577438,1773901846946,-320.0,0.00013908,2]
[408577439,1773901846954,-304.77413082,0.0001392,2]
[408577440,1773901846963,-12899.72705021,0.00013957,2]
[408577441,1773901846975,-150.0,0.00013973,2]
[408577442,1773901846985,-15953.48885377,0.0001399,2]
[408577443,1773901846995,-824.42530788,0.00014,2]
[408577444,1773901847004,-1194.75,0.00014022,2]
[408577445,1773901847014,-1100.0,0.00014082,2]
[408577446,1773901847025,-2900.0,0.00014082,2]
[408577447,1773901847034,-1800.0,0.00014082,2]
[408577448,1773901847045,-501.0,0.00014166,2]
[408577449,1773901847054,-1000.0,0.00014167,2]
[408577450,1773901847063,-300.0,0.00014204,3]
[408577451,1773901847072,-512.51857515,0.00014221,2]
[408577452,1773901847081,-1000.0,0.00014221,2]
[408577453,1773901847090,-333.74740353,0.00014221,2]
[408577454,1773901847099,-501.23260465,0.00014221,2]
[408577455,1773901847108,-313.87862379,0.00014221,2]
[408577456,1773901847117,-503.63793267,0.00014221,2]
[408577457,1773901847126,-1000.0,0.00014221,2]
[408577458,1773901847136,-1020.9482015,0.00014221,2]
[408577459,1773901847146,-1000.0,0.00014248,2]
[408577460,1773901847155,-1194.75,0.00014296,2]
[408577461,1773901847164,-213.31726696,0.00014355,2]
[408577462,1773901847173,-28035.86921723,0.00014369,2]
[408577463,1773901847182,-10385.50220008,0.0001439,2]
[408577464,1773901847191,-179.0,0.000144,2]
[408577465,1773901847199,-2402.0,0.000144,2]
[408577466,1773901847208,-2402.0,0.000144,2]
[408577467,1773901847217,-334.0,0.00014514,2]
[408577468,1773901847226,-12899.72705021,0.00014528,2]
[408577469,1773901847235,-1194.75,0.0001457,2]
[408577470,1773901847245,-600.0,0.00014589,2]
[408577471,1773901847255,-152.0,0.00014683,3]
[408577472,1773901847264,-689.0,0.00014707,2]
[408577473,1773901847273,-1252.0,0.0001471,2]
[408577474,1773901847282,-1350.033,0.00014711,2]
[408577475,1773901847293,-3512.0,0.00014711,2]
[408577476,1773901847302,-4609.0,0.00014711,2]
[408577477,1773901847311,-2402.0,0.0001472,2]
[408577478,1773901847320,-2402.0,0.0001472,2]
[408577479,1773901847329,-1567.0,0.0001472,2]
[408577480,1773901847338,-1330.0,0.0001472,2]
[408577481,1773901847347,-2000.0,0.00014733,2]
[408577482,1773901847356,-1000.0,0.00014747,2]
[408577483,1773901847365,-1500.0,0.00014768,2]
[408577484,1773901847375,-1500.0,0.00014768,2]
[408577485,1773901847384,-321.01,0.00014795,2]
[408577486,1773901847394,-1500.0,0.00014796,2]
[408577487,1773901847404,-1567.0,0.0001482,2]
[408577488,1773901847413,-2000.0,0.00014833,2]
[408577489,1773901847423,-152.0,0.00014833,4]
[408577490,1773901847434,-1194.75,0.00014844,2]
[408577491,1773901847444,-621.0,0.00014871,2]
[408577492,1773901847454,-320.0,0.00014886,2]
[408577493,1773901847465,-170.3354006,0.000149,2]
[408577494,1773901847477,-73956.70218337,0.000149,2]
[408577495,1773901847488,-621.0,0.00014906,2]
[408577496,1773901847498,-304.77413082,0.0001491,2]
[408577497,1773901847509,-28035.86921723,0.00014921,2]
[408577498,1773901847518,-2000.0,0.00014933,2]
[408577499,1773901847527,-181.6,0.00014946,30]
[408577500,1773901847537,-181.6,0.00014946,30]
[408577501,1773901847547,-621.0,0.00014949,2]
[408577502,1773901847557,-152.0,0.00014984,5]
[408577503,1773901847568,-150.369,0.00014993,2]
[408577504,1773901847579,-1261.0,0.00014993,2]
[408577505,1773901847589,-1215.0,0.00014993,2]
[408577506,1773901847598,-924.0,0.00014993,2]
[408577507,1773901847608,-501.0,0.00015,3]
[408577508,1773901847618,-250.0,0.00015,2]
[408577509,1773901847627,-500.0,0.00015,2]
[408577510,1773901847636,-500.0,0.00015,2]
[408577511,1773901847646,-500.0,0.00015,2]
[408577512,1773901847655,-500.0,0.00015,2]
[408577513,1773901847665,-500.0,0.00015,2]
[408577514,1773901847674,-500.0,0.00015,2]
[408577515,1773901847684,-500.0,0.00015,2]
[408577516,1773901847693,-500.0,0.00015,2]
[408577517,1773901847702,-500.0,0.00015,2]
[408577518,1773901847712,-500.0,0.00015,2]
[408577519,1773901847721,-612.39,0.00015,2]
[408577520,1773901847731,-500.0,0.00015,2]
[408577521,1773901847740,-500.0,0.00015,2]
[408577522,1773901847749,-423.72,0.00015,2]
[408577523,1773901847759,-500.0,0.00015,2]
[408577524,1773901847768,-500.0,0.00015,2]
[408577525,1773901847777,-500.0,0.00015,2]
[408577526,1773901847787,-2063.07913842,0.00015,2]
[408577527,1773901847796,-3182.24180802,0.00015,14]
[408577528,1773901847806,-8031.63478619,0.00015,2]
[408577529,1773901847815,-29334.59786636,0.00015,7]
[408577530,1773901847824,-500.0,0.00015,2]
[408577531,1773901847833,-500.0,0.00015,2]
[408577532,1773901847843,-500.0,0.00015,2]
[408577533,1773901847852,-500.0,0.00015,2]
[408577534,1773901847861,-500.0,0.00015,2]
[408577535,1773901847871,-500.0,0.00015,2]
[408577536,1773901847880,-621.0,0.00015021,2]
[408577537,1773901847890,-2000.0,0.00015033,2]
[408577538,1773901847899,-1000.0,0.00015038,2]
[408577539,1773901847909,-1567.0,0.0001504,2]
[408577540,1773901847918,-2402.0,0.0001504,2]
[408577541,1773901847928,-4261.862583,0.00015048,7]
[408577542,1773901847937,-1000.0,0.00015053,2]
[408577543,1773901847947,-1000.0,0.00015064,2]
[408577544,1773901847956,-1000.0,0.00015084,2]
[408577545,1773901847966,-150.0,0.00015092,2]
[408577546,1773901847976,-12899.72705021,0.000151,2]
[408577547,1773901847985,-150.0,0.00015109,2]
[408577548,1773901847995,-1000.0,0.00015115,2]
[408577549,1773901848004,-1194.75,0.00015118,2]
[408577550,1773901848013,-3609.92329877,0.00015127,2]
[408577551,1773901848022,-1000.0,0.00015133,2]
[408577552,1773901848031,-2000.0,0.00015133,2]
[408577553,1773901848041,-152.0,0.00015134,6]
[408577554,1773901848050,-621.0,0.00015156,2]
[408577555,1773901848062,-1000.0,0.00015156,2]
[408577556,1773901848072,-500.0,0.00015173,2]
[408577557,1773901848081,-500.0,0.00015173,2]
[408577558,1773901848091,-500.0,0.00015173,2]
[408577559,1773901848100,-500.0,0.00015173,2]
[408577560,1773901848110,-500.602946,0.00015173,2]
[408577561,1773901848119,-500.0,0.00015173,2]
[408577562,1773901848128,-500.0,0.00015173,2]
[408577563,1773901848138,-500.0,0.00015173,2]
[408577564,1773901848147,-500.0,0.00015173,2]
[408577565,1773901848157,-500.0,0.00015173,2]
[408577566,1773901848166,-500.0,0.00015173,2]
[408577567,1773901848176,-598.32353377,0.00015173,2]
[408577568,1773901848185,-500.0,0.00015173,2]
[408577569,1773901848195,-500.0,0.00015173,2]
[408577570,1773901848204,-500.0,0.00015173,2]
[408577571,1773901848214,-500.0,0.00015173,2]
[408577572,1773901848223,-339.06605453,0.00015173,2]
[408577573,1773901848233,-500.0,0.00015173,2]
[408577574,1773901848244,-500.0,0.00015173,2]
[408577575,1773901848256,-500.0,0.00015173,2]
[408577576,1773901848265,-500.0,0.00015173,2]
[408577577,1773901848274,-500.0,0.00015173,2]
[408577578,1773901848283,-500.0,0.00015173,2]
[408577579,1773901848293,-500.0,0.00015173,2]
[408577580,1773901848302,-240.45947328,0.00015173,2]
[408577581,1773901848312,-500.0,0.00015173,2]
[408577582,1773901848322,-500.0,0.00015173,2]
[408577583,1773901848331,-162.36552885,0.00015173,2]
[408577584,1773901848340,-500.0,0.00015173,2]
[408577585,1773901848350,-500.0,0.00015173,2]
[408577586,1773901848360,-500.0,0.00015173,2]
[408577587,1773901848369,-500.0,0.00015173,2]
[408577588,1773901848378,-500.0,0.00015173,2]
[408577589,1773901848388,-500.0,0.00015173,2]
[408577590,1773901848397,-500.0,0.00015173,2]
[408577591,1773901848406,-500.0,0.00015173,2]
[408577592,1773901848415,-500.0,0.00015173,2]
[408577593,1773901848425,-500.0,0.00015173,2]
[408577594,1773901848436,-500.0,0.00015173,2]
[408577595,1773901848447,-606.98804759,0.00015173,2]
[408577596,1773901848458,-500.0,0.00015173,2]
[408577597,1773901848468,-500.0,0.00015173,2]
[408577598,1773901848478,-1000.0,0.00015193,2]
[408577599,1773901848488,-9535.42,0.000152,2]
[408577600,1773901848497,-533298.08,0.000152,2]
[408577601,1773901848506,-8391.77885906,0.000152,2]
[408577602,1773901848516,-5000.0,0.000152,2]
[408577603,1773901848525,-5000.0,0.000152,2]
[408577604,1773901848535,-5000.0,0.000152,2]
[408577605,1773901848544,-408.64,0.00015215,2]
[408577606,1773901848554,-398.36,0.00015215,2]
[408577607,1773901848563,-150.0,0.00015222,2]
[408577608,1773901848572,-2000.0,0.00015233,2]
[408577609,1773901848581,-1058.675,0.00015242,2]
[408577610,1773901848591,-621.0,0.00015245,2]
[408577611,1773901848601,-1000.0,0.00015255,2]
[408577612,1773901848610,-1000.0,0.0001526,2]
[408577613,1773901848619,-300.0,0.00015266,3]
[408577614,1773901848629,-152.0,0.00015285,7]
[408577615,1773901848638,-150.0,0.00015286,2]
[408577616,1773901848648,-4550.65,0.000153,2]
[408577617,1773901848658,-8552.64,0.000153,2]
[408577618,1773901848667,-3665.66,0.000153,2]
[408577619,1773901848677,-1517.64,0.000153,2]
[408577620,1773901848686,-879.01,0.0001531,2]
[408577621,1773901848696,-621.0,0.00015315,2]
[408577622,1773901848706,-2014.00185196,0.00015316,2]
[408577623,1773901848715,-2000.0,0.00015316,2]
[408577624,1773901848724,-150.0,0.00015318,2]
[408577625,1773901848733,-1469.0,0.0001532,2]
[408577626,1773901848743,-621.0,0.0001532,2]
[408577627,1773901848753,-500.0,0.0001533,2]
[408577628,1773901848763,-500.0,0.0001533,2]
[408577629,1773901848772,-500.0,0.0001533,5]
[408577630,1773901848781,-154.62815875,0.0001533,2]
[408577631,1773901848791,-2000.0,0.00015333,2]
[408577632,1773901848800,-2000.0,0.00015344,2]
[408577633,1773901848810,-621.0,0.00015359,2]
[408577634,1773901848819,-1469.0,0.00015375,2]
[408577635,1773901848829,-1194.75,0.00015392,2]
[408577636,1773901848839,-621.0,0.00015393,2]
[408577637,1773901848848,-1000.0,0.00015394,2]
[408577638,1773901848858,-511.52743554,0.000154,2]
[408577639,1773901848868,-1000.0,0.00015405,2]
[408577640,1773901848878,-500.0,0.00015425,2]
[408577641,1773901848888,-500.0,0.00015425,2]
[408577642,1773901848897,-1000.0,0.0001543,2]
[408577643,1773901848907,-2000.0,0.00015433,2]
[408577644,1773901848916,-152.0,0.00015435,8]
[408577645,1773901848926,-150.0,0.00015442,2]
[408577646,1773901848936,-150.0,0.00015451,2]
[408577647,1773901848946,-150.0,0.00015451,2]
[408577648,1773901848955,-150.0,0.00015451,2]
[408577649,1773901848965,-162.0,0.00015451,2]
[408577650,1773901848975,-1100.0,0.00015452,2]
[408577651,1773901848984,-2900.0,0.00015452,2]
[408577652,1773901849001,-1800.0,0.00015452,2]
[408577653,1773901849010,-350.0,0.00015466,2]
[408577654,1773901849019,-414.93,0.00015484,2]
[408577655,1773901849029,-1005.04,0.000155,2]
[408577656,1773901849039,-600.0,0.000155,5]
[408577657,1773901849049,-1228.88155727,0.000155,2]
[408577658,1773901849059,-334.0,0.00015514,2]
[408577659,1773901849068,-1000.0,0.00015514,2]
[408577660,1773901849078,-1000.0,0.00015522,2]
[408577661,1773901849087,-262.401806,0.00015523,7]
[408577662,1773901849096,-500.0,0.00015526,2]
[408577663,1773901849105,-500.0,0.00015526,2]
[408577664,1773901849115,-500.0,0.00015526,2]
[408577665,1773901849124,-461.65354003,0.00015526,2]
[408577666,1773901849134,-500.0,0.00015526,2]
[408577667,1773901849143,-150.0,0.00015526,2]
[408577668,1773901849153,-500.0,0.00015526,2]
[408577669,1773901849162,-172.33361758,0.00015526,2]
[408577670,1773901849171,-190.77647721,0.00015526,2]
[408577671,1773901849181,-150.0,0.00015526,2]
[408577672,1773901849190,-150.0,0.00015526,2]
[408577673,1773901849199,-150.0,0.00015526,2]